bitfinex/quotes_ETHUSD_20251023
["timestamp","ask_amount","ask_price","bid_price","bid_amount"]
[1761263161785,0.001,3859.1,3859.0,0.1316]
[1761263169511,2.0098,3859.1,3859.0,0.1316]
[1761263169709,2.81846648,3859.1,3859.0,0.1316]
[1761263170211,5.40974423,3859.1,3859.0,0.1316]
[1761263170413,2.81846648,3859.1,3859.0,0.1316]
[1761263170571,2.36486648,3859.1,3859.0,0.1316]
[1761263170776,1.5562,3859.1,3859.0,0.1316]
[1761263172025,2.0098,3859.1,3859.0,0.1316]
[1761263172200,7.85907775,3859.1,3859.0,0.1316]
[1761263172406,8.41726862,3859.1,3859.0,0.1316]
[1761263173094,5.82599087,3859.1,3859.0,0.1316]
[1761263173295,9.25917593,3859.1,3859.0,0.002]
[1761263173723,9.95772387,3859.1,3859.0,0.002]
[1761263174394,9.25917593,3859.1,3859.0,0.002]
[1761263177306,9.95709014,3859.1,3859.0,0.002]
[1761263177827,9.25917593,3859.1,3859.0,0.002]
[1761263179298,9.95687278,3859.1,3859.0,0.002]
[1761263181731,9.25917593,3859.1,3859.0,0.002]
[1761263183313,9.39453212,3859.1,3859.0,0.002]
[1761263184837,9.49835581,3859.1,3859.0,0.002]
[1761263186734,12.59652875,3859.1,3859.0,0.002]
[1761263196257,13.9906043,3859.1,3859.0,0.002]
[1761263199370,12.49270506,3859.1,3859.0,0.002]
[1761263201078,12.62230506,3859.1,3859.0,0.002]
[1761263201442,12.62230506,3859.1,3858.6,0.002]
[1761263201443,2.59154637,3858.7,3858.6,0.002]
[1761263201680,10.34336092,3858.3,3858.2,0.002]
[1761263201848,15.68619407,3858.3,3858.2,0.002]
[1761263202055,14.74915179,3858.3,3858.2,0.002]
[1761263202283,16.48323942,3858.3,3858.2,0.002]
[1761263202740,13.38506648,3858.3,3858.2,0.002]
[1761263204276,16.48323942,3858.3,3858.2,0.002]
[1761263204779,16.61294716,3858.3,3858.2,0.002]
[1761263213684,16.74833466,3858.3,3858.2,0.002]
[1761263215059,7.97111947,3858.3,3858.2,0.002]
[1761263215261,12.25723178,3858.3,3858.2,0.2067]
[1761263215484,11.32636635,3858.3,3858.2,0.2067]
[1761263215802,11.32636635,3858.3,3858.2,0.002]
[1761263219286,12.25723178,3858.3,3858.2,0.002]
[1761263219463,13.88177125,3858.3,3858.2,0.002]
[1761263219664,14.34197125,3858.3,3858.2,0.002]
[1761263222904,17.44014419,3858.3,3858.2,0.002]
[1761263223067,13.41110582,3858.3,3858.2,0.002]
[1761263224394,17.90571719,3858.3,3858.2,0.002]
[1761263224571,7.38196222,3858.2,3858.1,1e-08]
[1761263224771,2.59221816,3857.7,3857.5,0.002]
[1761263224978,11.06178197,3857.7,3857.5,0.002]
[1761263225164,11.99331626,3857.7,3857.5,0.002]
[1761263225366,11.06178197,3857.7,3857.5,0.002]
[1761263226197,11.0625441,3857.7,3857.5,0.002]
[1761263226698,7.96437116,3857.7,3857.5,0.002]
[1761263227035,2.81282531,3857.7,3857.5,0.002]
[1761263227202,5.372153,3857.7,3857.6,0.2067]
[1761263227731,0.558953,3857.7,3857.6,0.2067]
[1761263227928,3.258,3857.7,3857.6,0.2067]
[1761263228112,3.816953,3857.7,3857.6,0.2067]
[1761263229291,0.558953,3857.7,3857.6,0.2067]
[1761263229491,0.558953,3858.0,3857.7,2.59221051]
[1761263229739,0.558953,3858.2,3857.8,2.59215096]
[1761263229897,3.816953,3858.1,3857.7,2.59220934]
[1761263230092,1.5552,3857.9,3857.7,2.59220934]
[1761263230292,1.5552,3857.9,3857.8,0.2047]
[1761263230830,1.5552,3857.9,3857.8,2.79685096]
[1761263231042,1.5552,3857.9,3857.8,0.2047]
[1761263234758,1.5552,3857.9,3857.8,0.3343]
[1761263235118,1.5552,3857.9,3857.8,0.1296]
[1761263235452,1.5552,3857.9,3857.8,0.3343]
[1761263238153,0.001,3858.6,3857.9,2.59202099]
[1761263238455,1.5552,3858.4,3858.0,0.2047]
[1761263238652,1.5552,3858.4,3858.2,0.1296]
[1761263239062,1.5552,3858.4,3858.3,0.2047]
[1761263243038,0.001,3858.6,3858.3,0.2047]
[1761263243237,3.258,3858.4,3858.3,0.2047]
[1761263243775,3.258,3858.4,3858.3,0.3343]
[1761263244147,3.259,3858.4,3858.3,0.3343]
[1761263246783,0.001,3858.4,3858.3,2.92611504]
[1761263246984,3.258,3858.4,3858.3,2.92611504]
[1761263247840,0.001,3858.4,3858.3,2.92611504]
[1761263248370,0.001,3858.4,3858.3,2.82520829]
[1761263248878,0.001,3858.4,3858.3,3.02990829]
[1761263252468,0.001,3858.4,3858.3,2.82520829]
[1761263252642,0.001,3858.4,3858.3,0.23339325]
[1761263252848,0.001,3858.4,3858.3,0.1296]
[1761263255060,0.001,3858.4,3858.3,2.72141504]
[1761263255285,0.001,3858.4,3858.3,0.1296]
[1761263255453,0.001,3858.4,3858.3,0.3343]
[1761263255651,0.001,3858.4,3858.3,2.92611504]
[1761263255846,0.001,3858.4,3858.3,2.72141504]
[1761263256052,0.001,3858.4,3858.3,2.92611504]
[1761263260200,0.001,3858.4,3858.3,0.1296]
[1761263260805,0.001,3858.4,3858.3,2.72141504]
[1761263264769,0.001,3858.4,3858.3,2.92611504]
[1761263266202,0.001,3858.4,3858.3,3.45891319]
[1761263266979,0.001,3858.4,3858.3,7.04606763]
[1761263267198,0.001,3858.4,3858.3,7.02014948]
[1761263270908,0.001,3858.4,3858.3,10.27614948]
[1761263276884,0.001,3858.4,3858.3,3.33206917]
[1761263277209,0.001,3858.4,3858.3,6.58806917]
[1761263277779,0.001,3858.4,3858.3,6.79276917]
[1761263282722,0.001,3858.4,3858.3,6.58806917]
[1761263283622,0.001,3858.4,3858.3,6.79276917]
[1761263283984,0.001,3858.4,3858.3,6.58806917]
[1761263286304,0.001,3858.4,3858.3,6.79276917]
[1761263286627,0.001,3858.4,3858.3,9.94184948]
[1761263286826,0.001,3858.4,3858.3,10.27614948]
[1761263287407,0.001,3858.4,3858.3,11.83134948]
[1761263288332,0.001,3859.0,3858.9,3.09829206]
[1761263288529,0.001,3859.0,3858.9,6.48389206]
[1761263288729,0.001,3859.0,3858.9,6.68859206]
[1761263289130,0.001,3859.0,3858.9,6.79235354]
[1761263294950,1e-08,3859.3,3859.2,2.59121061]
[1761263295147,1e-08,3859.7,3859.2,9.8374576]
[1761263295436,1e-08,3859.7,3859.6,6.58120237]
[1761263295737,1e-08,3859.7,3859.6,9.83720237]
[1761263295940,1e-08,3859.7,3859.6,10.04190237]
[1761263297633,1e-08,3859.7,3859.6,10.50590237]
[1761263299640,1e-08,3859.7,3859.6,6.81682206]
[1761263301148,1e-08,3859.7,3859.6,3.56182206]
[1761263301343,1e-08,3859.7,3859.6,6.81682206]
[1761263301510,0.46400001,3859.7,3859.6,6.81682206]
[1761263301707,0.46400001,3859.7,3859.6,3.56182206]
[1761263301913,0.46400001,3859.7,3859.6,3.05494206]
[1761263302124,0.46400001,3859.7,3859.6,2.59094206]
[1761263302958,0.46400001,3859.7,3859.4,3.255]
[1761263303158,0.46400001,3859.7,3859.6,2.59094206]
[1761263304760,0.46400001,3859.7,3859.2,0.46400001]
[1761263305061,0.46400001,3859.7,3857.7,3.82399999]
[1761263305062,6.53826121,3859.7,3858.7,2.364]
[1761263305373,0.67739612,3859.6,3859.4,0.1296]
[1761263305525,1.14139612,3859.6,3859.4,0.1296]
[1761263305728,0.464,3859.5,3859.4,0.1296]
[1761263306536,0.464,3859.5,3859.4,2.72067633]
[1761263306730,0.464,3859.5,3859.4,0.1296]
[1761263313586,0.464,3859.5,3859.4,0.1316]
[1761263315884,0.66602,3859.5,3859.4,0.1316]
[1761263316266,4.81222919,3859.5,3859.4,0.002]
[1761263316466,5.3698363,3859.5,3859.4,0.002]
[1761263318117,5.5014363,3859.5,3859.4,0.002]
[1761263322527,8.7584363,3859.5,3859.4,0.002]
[1761263323209,11.85377484,3859.5,3859.4,0.002]
[1761263323405,8.7584363,3859.5,3859.4,0.002]
[1761263328407,9.45559652,3859.5,3859.4,0.002]
[1761263330332,8.7584363,3859.5,3859.4,0.002]
[1761263330527,11.85377484,3859.5,3859.4,0.002]
[1761263330828,8.7584363,3859.5,3859.4,0.002]
[1761263331402,9.68997059,3859.5,3859.4,0.002]
[1761263331726,8.7584363,3859.5,3859.4,0.002]
[1761263332325,9.68997059,3859.5,3859.4,0.002]
[1761263332527,8.7584363,3859.5,3859.4,0.002]
[1761263333338,9.68997059,3859.5,3859.4,0.002]
[1761263335199,9.68797059,3859.5,3859.4,0.002]
[1761263335606,9.7917703,3859.5,3859.4,0.002]
[1761263338415,12.88710884,3859.5,3859.4,0.002]
[1761263338727,9.7917703,3859.5,3859.4,0.002]
[1761263339235,8.86023601,3859.5,3859.4,0.002]
[1761263341006,11.95557455,3859.5,3859.4,0.002]
[1761263341205,12.09092694,3859.5,3859.4,0.002]
[1761263342312,2.59127775,3859.1,3859.0,0.002]
[1761263342508,12.79050188,3859.1,3859.0,0.002]
[1761263342708,13.22770188,3859.1,3859.0,0.002]
[1761263342902,13.35730188,3859.1,3859.0,0.002]
[1761263343332,12.79969477,3859.1,3859.0,0.002]
[1761263343537,13.35827657,3859.1,3859.0,0.002]
[1761263344436,12.42756462,3859.1,3859.0,0.002]
[1761263344634,12.29796462,3859.1,3859.0,0.002]
[1761263346345,13.69403254,3859.1,3859.0,0.002]
[1761263349357,8.76542608,3859.1,3859.0,0.002]
[1761263349653,4.70505955,3859.1,3859.0,0.002]
[1761263349855,7.10587866,3859.1,3859.0,0.2067]
[1761263350151,8.66107866,3859.1,3859.0,0.002]
[1761263350345,4.51460091,3859.1,3859.0,0.002]
[1761263350648,5.3707818,3859.1,3859.0,0.2067]
[1761263350828,3.8155818,3859.1,3859.0,0.2067]
[1761263351350,5.3707818,3859.1,3859.0,0.2067]
[1761263352022,5.3707818,3859.1,3859.0,0.002]
[1761263354156,7.96205955,3859.1,3859.0,0.002]
[1761263359646,8.39925955,3859.1,3859.0,0.002]
[1761263362050,7.96205955,3859.1,3859.0,0.002]
[1761263363774,8.39925955,3859.1,3859.0,0.002]
[1761263364481,7.96205955,3859.1,3859.0,0.002]
[1761263366689,9.45359617,3859.1,3859.0,0.002]
[1761263366855,10.02039617,3859.1,3859.0,0.002]
[1761263367180,10.51479452,3859.1,3859.0,0.002]
[1761263367381,9.58319617,3859.1,3859.0,0.002]
[1761263367880,3.73491842,3859.1,3859.0,0.002]
[1761263368083,6.06941843,3859.1,3859.0,0.002]
[1761263368863,8.66069618,3859.1,3859.0,0.002]
[1761263375670,9.11219618,3859.1,3859.0,0.002]
[1761263376283,8.41355955,3859.1,3859.0,0.002]
[1761263376488,9.96862095,3859.1,3859.0,0.002]
[1761263385392,10.09822095,3859.1,3859.0,0.002]
[1761263387816,10.09612095,3859.1,3859.0,0.002]
[1761263388526,11.49218887,3859.1,3859.0,0.002]
[1761263390118,10.09612095,3859.1,3859.0,0.002]
[1761263392220,11.49467603,3859.1,3859.0,0.002]
[1761263399439,5.76470094,3859.1,3859.0,0.002]
[1761263399637,9.02270094,3859.1,3859.0,0.002]
[1761263400356,8.40625955,3859.1,3859.0,0.002]
[1761263400502,8.54162617,3859.1,3859.0,0.002]
[1761263402024,14.93162617,3859.1,3859.0,0.002]
[1761263402532,2.59154637,3858.7,3858.6,0.002]
[1761263402707,12.84192348,3858.7,3858.6,0.002]
[1761263402908,13.28722348,3858.7,3858.6,0.002]
[1761263403130,11.88923934,3858.7,3858.6,0.002]
[1761263403333,13.49943706,3858.7,3858.6,0.002]
[1761263405765,13.05413706,3858.7,3858.6,0.002]
[1761263405912,11.44393934,3858.7,3858.6,0.002]
[1761263406112,12.37553426,3858.7,3858.6,0.002]
[1761263407447,9.11853426,3858.7,3858.6,0.002]
[1761263407642,12.37553426,3858.7,3858.6,0.002]
[1761263408821,9.11853426,3858.7,3858.6,0.002]
[1761263409021,11.44393934,3858.7,3858.6,0.002]
[1761263414355,12.37553426,3858.7,3858.6,0.002]
[1761263417337,13.05061685,3858.7,3858.6,0.002]
[1761263419229,12.37553426,3858.7,3858.6,0.002]
[1761263421162,12.37553426,3858.7,3858.6,0.2067]
[1761263421163,6.30027672,3858.7,3858.6,0.2067]
[1761263421360,1.25592417,3858.7,3858.6,0.2067]
[1761263421558,0.5564818,3858.7,3858.6,0.6161]
[1761263421749,0.001,3859.0,3858.7,2.59154637]
[1761263421951,0.001,3859.0,3858.9,2.72101206]
[1761263422394,0.001,3859.0,3858.9,3.48508432]
[1761263423882,0.001,3859.0,3858.9,3.99196432]
[1761263428251,0.001,3859.0,3858.9,1.40055226]
[1761263428403,0.001,3859.0,3858.9,0.89367226]
[1761263428592,0.001,3859.0,3858.9,0.68897226]
[1761263429236,0.001,3859.0,3858.9,0.89367226]
[1761263429726,0.001,3859.0,3858.9,0.68897226]
[1761263434761,0.001,3859.0,3858.9,0.69097226]
[1761263438356,5.34879248,3859.0,3858.9,0.002]
[1761263438527,6.6037348,3859.0,3858.9,0.002]
[1761263438728,5.90581725,3859.0,3858.9,0.002]
[1761263442643,6.60223211,3859.0,3858.9,0.002]
[1761263442967,5.90581725,3859.0,3858.9,0.002]
[1761263443371,9.16381725,3859.0,3858.9,0.002]
[1761263448479,9.29341725,3859.0,3858.9,0.002]
[1761263450104,8.70211725,3859.0,3858.9,0.002]
[1761263453997,3.88991725,3859.0,3858.9,0.002]
[1761263454311,6.40636967,3859.0,3858.9,0.002]
[1761263454493,6.40636967,3859.0,3858.9,0.1336]
[1761263454803,7.96156967,3859.0,3858.9,0.1336]
[1761263455205,7.4045449,3859.0,3858.9,0.1336]
[1761263456013,1.5562,3859.0,3858.9,0.1336]
[1761263456188,4.8132,3859.0,3858.9,0.3383]
[1761263458078,3.258,3859.0,3858.9,0.3383]
[1761263459623,3.258,3859.0,3858.9,0.4679]
[1761263459959,6.3541936,3859.0,3858.9,0.2632]
[1761263460085,7.9093936,3859.0,3858.9,0.2632]
[1761263460594,4.8132,3859.0,3858.9,0.2632]
[1761263465900,7.4045449,3859.0,3858.9,0.2632]
[1761263466387,7.8700449,3859.0,3858.9,0.2632]
[1761263466999,5.2787,3859.0,3858.9,0.2632]
[1761263467506,4.8132,3859.0,3858.9,0.2632]
[1761263472337,4.8132,3859.0,3858.9,0.1316]
[1761263480431,5.37225774,3859.0,3858.9,0.1316]
[1761263482441,5.83775774,3859.0,3858.9,0.1316]
[1761263482812,5.37225774,3859.0,3858.9,0.1316]
[1761263483426,5.83775774,3859.0,3858.9,0.1316]
[1761263483642,5.37225774,3859.0,3858.9,0.1316]
[1761263485342,5.83775774,3859.0,3858.9,0.1316]
[1761263487452,5.83852614,3859.0,3858.9,0.1316]
[1761263487649,5.37302614,3859.0,3858.9,0.1316]
[1761263488645,5.82072614,3859.0,3858.9,0.1316]
[1761263489149,5.37302614,3859.0,3858.9,0.1316]
[1761263490544,5.82682614,3859.0,3858.9,0.1316]
[1761263490741,5.37302614,3859.0,3858.9,0.1316]
[1761263492351,5.37202614,3859.0,3858.9,0.1316]
[1761263494374,5.37202614,3859.0,3858.9,0.3363]
[1761263496948,5.37202614,3859.0,3858.9,2.95362618]
[1761263497519,4.8122,3859.0,3858.9,2.95362618]
[1761263497961,4.8122,3859.0,3858.9,0.36221412]
[1761263498137,4.8122,3859.0,3858.9,0.3363]
[1761263499153,4.8122,3859.0,3858.9,0.1316]
[1761263499351,4.8122,3859.0,3858.9,0.3363]
[1761263499550,3.257,3859.0,3858.9,2.92771206]
[1761263500142,0.001,3859.0,3858.9,2.72301206]
[1761263500341,3.257,3859.0,3858.9,2.92771206]
[1761263501481,0.001,3859.0,3858.9,2.92771206]
[1761263501658,0.001,3859.0,3858.9,2.95362618]
[1761263501855,0.001,3859.0,3858.9,2.92771206]
[1761263508574,0.001,3859.0,3858.9,2.72301206]
[1761263508762,0.001,3859.0,3858.9,0.1316]
[1761263509168,0.001,3859.0,3858.9,2.72301206]
[1761263509339,0.001,3859.0,3858.9,0.1316]
[1761263509674,0.001,3859.0,3858.9,2.72301206]
[1761263512143,0.001,3859.0,3858.9,0.1316]
[1761263513476,0.4548,3859.0,3858.9,0.1316]
[1761263515496,0.001,3859.0,3858.9,0.1316]
[1761263515986,0.001,3859.0,3858.9,2.72301206]
[1761263516918,0.001,3859.0,3858.9,2.74892618]
[1761263517112,0.001,3859.0,3858.9,2.72301206]
[1761263517813,0.001,3859.0,3858.9,2.95362618]
[1761263518315,0.001,3859.0,3858.9,2.92771206]
[1761263518710,0.001,3859.0,3858.9,2.95362618]
[1761263518892,0.001,3859.0,3858.9,2.92771206]
[1761263519216,0.001,3859.0,3858.9,3.43459206]
[1761263520706,0.001,3859.0,3858.9,3.46050618]
[1761263520906,0.001,3859.0,3858.9,3.56426389]
[1761263521109,0.001,3859.0,3858.9,3.53834977]
[1761263522795,0.001,3859.0,3858.9,3.56426389]
[1761263522993,0.001,3859.0,3858.9,5.09354977]
[1761263523502,0.001,3859.0,3858.9,8.35154977]
[1761263532852,0.001,3859.0,3858.9,5.09354977]
[1761263533068,0.001,3859.0,3858.9,0.10575771]
[1761263533221,0.4728,3859.0,3858.9,0.10575771]
[1761263533423,0.4728,3859.0,3858.9,0.002]
[1761263534643,0.4728,3859.0,3858.9,2.59341206]
[1761263534956,0.001,3859.0,3858.9,3.10029206]
[1761263535257,0.001,3859.0,3858.9,3.30499206]
[1761263536651,0.001,3859.0,3858.9,3.10029206]
[1761263536850,0.4728,3859.0,3858.9,3.10029206]
[1761263537252,0.4728,3859.0,3858.9,0.002]
[1761263537853,0.4728,3859.0,3858.9,2.59341206]
[1761263539165,0.4728,3859.0,3858.9,0.002]
[1761263539357,0.4728,3859.0,3858.9,2.59341206]
[1761263540449,0.4728,3859.0,3858.9,0.002]
[1761263541051,3.37064696,3859.0,3858.9,0.002]
[1761263541252,4.6193449,3859.0,3858.9,0.002]
[1761263543158,4.6193449,3859.0,3858.9,0.1316]
[1761263543359,4.6193449,3859.0,3858.9,0.002]
[1761263546578,7.8803449,3859.0,3858.9,0.002]
[1761263547573,6.34921559,3859.0,3858.9,0.002]
[1761263547965,8.94056049,3859.0,3858.9,0.002]
[1761263555518,2.59154637,3858.7,3858.6,0.002]
[1761263555681,4.14728377,3857.9,3857.6,0.002]
[1761263555881,4.14728377,3857.9,3857.0,0.10383016]
[1761263555882,4.14761976,3857.4,3857.0,0.10383016]
[1761263556063,4.14761976,3857.4,3856.0,2.59335807]
[1761263556064,7.96609264,3857.4,3856.0,2.59335807]
[1761263556404,7.85191976,3857.4,3857.0,0.10384876]
[1761263556585,8.94677693,3857.4,3857.0,0.10384876]
[1761263558770,8.94677693,3857.4,3857.0,0.23344876]
[1761263559298,8.94677693,3857.4,3857.0,0.10384876]
[1761263559605,8.94677693,3857.4,3856.9,0.23545092]
[1761263563803,7.39157693,3857.4,3856.9,0.1316]
[1761263563975,3.7043,3857.4,3857.2,0.1316]
[1761263565588,3.262,3857.4,3857.2,0.1316]
[1761263566274,3.7043,3857.4,3857.2,0.1316]
[1761263566478,2.59223859,3857.7,3857.2,0.1316]
[1761263566676,2.59240457,3857.5,3857.4,0.1296]
[1761263567177,3.03470457,3857.5,3857.4,0.1296]
[1761263572618,0.4433,3857.5,3857.4,0.1296]
[1761263573525,5.85535255,3857.5,3857.4,0.1296]
[1761263573821,6.29765255,3857.5,3857.4,0.1296]
[1761263574928,5.2605,3857.5,3857.4,0.1296]
[1761263576726,4.14761976,3857.4,3857.3,0.002]
[1761263576935,5.14672252,3857.4,3857.3,0.002]
[1761263584351,5.84134747,3857.4,3857.3,0.002]
[1761263584852,4.70442252,3857.4,3857.3,0.002]
[1761263585754,5.13772252,3857.4,3857.3,0.002]
[1761263585928,6.75678347,3857.4,3857.3,0.002]
[1761263589836,1.25755478,3857.4,3857.3,0.002]
[1761263590169,6.07275478,3857.4,3857.3,0.10784768]
[1761263590536,6.50605478,3857.4,3857.3,0.10784768]
[1761263590735,11.49537441,3857.4,3857.3,0.10784768]
[1761263590969,11.10440473,3857.4,3857.3,0.10784768]
[1761263591169,13.69682449,3857.4,3857.3,0.10784768]
[1761263591337,10.6001726,3857.4,3857.3,0.10784768]
[1761263591977,6.07280268,3857.4,3857.3,0.10784768]
[1761263592274,5.37300276,3857.4,3857.3,0.10784768]
[1761263592762,5.37500276,3857.4,3857.3,0.10784768]
[1761263592932,5.37500276,3857.4,3857.3,0.002]
[1761263595960,5.37400276,3857.4,3857.3,0.002]
[1761263596556,5.37400276,3857.4,3857.3,0.2247]
[1761263597266,5.37400276,3857.4,3857.3,0.002]
[1761263599957,3.81880276,3857.4,3857.3,0.002]
[1761263600162,3.262,3857.4,3857.3,0.002]
[1761263600868,3.262,3857.4,3857.3,0.1316]
[1761263610683,3.26,3857.4,3857.3,0.3543]
[1761263611065,3.26,3857.4,3857.3,0.1316]
[1761263611269,0.001,3857.4,3857.3,2.72408697]
[1761263611486,3.26,3857.4,3857.3,2.72408697]
[1761263611683,3.26,3857.4,3857.3,2.94678697]
[1761263611684,0.001,3857.4,3857.3,2.94678697]
[1761263611882,3.26,3857.4,3857.3,2.94678697]
[1761263613889,0.001,3857.4,3857.3,3.45366697]
[1761263614996,0.001,3857.4,3857.3,3.32406697]
[1761263615355,0.001,3857.4,3857.3,3.2051586]
[1761263615563,0.001,3857.4,3857.3,0.002]
[1761263615761,0.4408,3857.4,3857.3,0.002]
[1761263616072,0.001,3857.4,3857.3,0.002]
[1761263616276,3.269,3857.4,3857.3,0.002]
[1761263624885,3.269,3857.4,3857.3,0.1316]
[1761263629681,3.267,3857.4,3857.3,2.72408697]
[1761263629999,0.001,3857.4,3857.3,3.45366697]
[1761263640221,0.001,3857.4,3857.3,3.23096697]
[1761263644327,0.001,3857.4,3857.3,3.45366697]
[1761263646195,0.001,3857.4,3857.3,3.23096697]
[1761263646916,0.001,3857.4,3857.3,3.45366697]
[1761263650720,0.001,3857.4,3857.3,3.23096697]
[1761263651251,0.001,3857.4,3857.3,3.45366697]
[1761263652141,0.001,3857.4,3857.3,6.71766697]
[1761263653573,0.001,3857.4,3857.3,6.82145968]
[1761263658977,0.001,3857.4,3857.3,6.59875968]
[1761263661191,0.001,3857.4,3857.3,6.82145968]
[1761263662780,0.001,3857.4,3857.3,0.10579271]
[1761263662997,0.4395,3857.4,3857.3,0.002]
[1761263664102,0.4395,3857.4,3857.3,2.59448697]
[1761263664303,0.4395,3857.4,3857.3,0.002]
[1761263665007,0.4395,3857.4,3857.3,3.265]
[1761263665778,0.4395,3857.4,3857.3,0.002]
[1761263665981,0.4395,3857.4,3857.3,3.265]
[1761263670714,0.4395,3857.4,3857.3,3.264]
[1761263672909,0.4395,3857.4,3857.3,3.3936]
[1761263674798,0.4395,3857.4,3857.3,0.1316]
[1761263675116,0.4395,3857.4,3857.3,3.3936]
[1761263675980,0.4395,3857.4,3857.3,0.1316]
[1761263676182,0.4395,3857.4,3857.3,3.3936]
[1761263679343,0.4395,3857.4,3857.3,5.98608697]
[1761263679745,0.4395,3857.4,3857.3,5.98508697]
[1761263680746,0.4395,3857.4,3857.3,2.72408697]
[1761263681243,0.4395,3857.4,3857.3,5.98508697]
[1761263682445,0.4395,3857.4,3857.3,2.72408697]
[1761263682744,0.4395,3857.4,3857.3,5.98508697]
[1761263689281,0.4395,3857.4,3857.3,5.98408697]
[1761263690741,0.001,3857.4,3857.3,5.98408697]
[1761263690934,0.001,3857.4,3857.3,6.49096697]
[1761263691648,0.001,3857.4,3857.3,6.71366697]
[1761263692058,0.001,3857.4,3857.3,6.59477854]
[1761263692259,0.001,3857.4,3857.3,6.81747854]
[1761263695678,0.001,3857.4,3857.3,3.55747854]
[1761263695871,0.001,3857.4,3857.3,3.33477854]
[1761263696078,0.001,3857.4,3857.3,6.59477854]
[1761263700292,0.001,3857.4,3857.3,9.69295131]
[1761263702689,0.001,3857.4,3857.3,6.43295131]
[1761263702991,0.001,3857.4,3857.3,9.69195131]
[1761263703995,0.001,3857.4,3857.3,6.43295131]
[1761263704179,0.001,3857.4,3857.3,9.69195131]
[1761263705663,0.001,3857.4,3857.3,9.91465131]
[1761263709182,0.001,3857.4,3857.3,9.69195131]
[1761263709381,0.001,3857.4,3857.3,9.91465131]
[1761263710013,0.001,3857.4,3857.3,11.46985131]
[1761263712315,0.001,3857.4,3857.3,8.21085131]
[1761263712493,0.001,3857.4,3857.3,11.46985131]
[1761263721726,0.001,3857.4,3857.3,11.24715131]
[1761263723836,0.4491,3857.4,3857.3,4.88997854]
[1761263724034,0.4491,3857.4,3857.3,0.002]
[1761263724233,0.80392728,3857.4,3857.3,3.26]
[1761263724428,0.4491,3857.4,3857.3,6.35936697]
[1761263724738,0.4491,3857.4,3857.3,5.85248697]
[1761263724931,0.4491,3857.4,3857.3,6.35936697]
[1761263725132,0.4491,3857.4,3857.3,5.85248697]
[1761263725338,0.4491,3857.4,3857.3,6.35936697]
[1761263726037,0.4491,3857.4,3857.3,3.26]
[1761263726234,0.4491,3857.4,3857.3,5.85248697]
[1761263729712,0.4694,3857.4,3857.3,6.35936697]
[1761263731114,0.4694,3857.4,3857.3,6.36036697]
[1761263734043,0.4694,3857.4,3857.3,6.48996697]
[1761263734364,0.001,3857.4,3857.3,6.48996697]
[1761263736449,0.001,3857.4,3857.3,6.71266697]
[1761263736649,0.001,3857.4,3857.3,7.18106697]
[1761263738748,0.001,3857.4,3857.3,10.66440971]
[1761263739055,0.001,3857.4,3857.3,12.21960971]
[1761263741453,0.001,3857.4,3857.3,8.51356697]
[1761263742751,0.001,3857.4,3857.3,5.25456697]
[1761263742956,0.001,3857.4,3857.3,8.51356697]
[1761263748244,0.001,3857.4,3857.3,5.25456697]
[1761263748446,0.001,3857.4,3857.3,8.51256697]
[1761263749265,0.001,3857.4,3857.3,5.25456697]
[1761263749466,0.001,3857.4,3857.3,8.51256697]
[1761263751062,0.001,3857.4,3857.3,8.73526697]
[1761263751670,0.001,3857.4,3857.3,8.51256697]
[1761263764462,0.001,3857.4,3857.3,9.90324828]
[1761263764666,0.4312,3859.6,3857.5,2.73]
[1761263764898,1e-08,3859.7,3859.6,4.65302206]
[1761263765082,1e-08,3859.7,3859.6,9.33170337]
[1761263765258,1e-08,3859.7,3859.6,8.40622206]
[1761263765464,1e-08,3859.7,3859.6,8.50994399]
[1761263767693,1e-08,3859.7,3859.6,11.52808673]
[1761263768185,1e-08,3859.7,3859.6,11.99328673]
[1761263769411,1e-08,3859.7,3859.6,12.91554214]
[1761263769592,1e-08,3859.7,3859.6,9.16234214]
[1761263769896,1e-08,3859.7,3859.6,12.91454214]
[1761263771168,1e-08,3859.7,3859.6,12.44834214]
[1761263771369,1e-08,3859.7,3859.6,8.24008673]
[1761263771569,1e-08,3859.7,3859.6,11.52608673]
[1761263772502,1e-08,3859.7,3859.6,13.0009049]
[1761263773291,1e-08,3859.7,3859.6,12.07864949]
[1761263773491,1e-08,3859.7,3859.6,12.89718297]
[1761263773691,1e-08,3859.7,3859.6,13.36238297]
[1761263774208,1e-08,3859.7,3859.6,12.89718297]
[1761263774408,1e-08,3859.7,3859.6,11.97492756]
[1761263774614,1e-08,3859.7,3859.6,12.10452756]
[1761263775218,1e-08,3859.7,3859.6,12.56972756]
[1761263775401,0.001,3859.8,3859.7,4.65295493]
[1761263775602,0.001,3859.8,3859.7,6.5929731]
[1761263776521,0.2216,3860.9,3860.8,3.09701675]
[1761263776904,0.2216,3860.9,3860.8,6.51061675]
[1761263777318,0.6528,3860.9,3860.8,6.51061675]
[1761263777914,0.6528,3860.9,3860.8,6.00273675]
[1761263781399,0.6528,3860.9,3859.7,0.92225541]
[1761263781597,0.4312,3860.8,3860.7,2.59020384]
[1761263782036,0.4312,3860.8,3860.7,5.87220384]
[1761263783511,0.4312,3860.8,3860.7,2.59020384]
[1761263783717,0.4312,3860.8,3860.7,5.87220384]
[1761263786026,0.4312,3860.8,3860.7,5.87020384]
[1761263787249,0.4312,3860.8,3860.6,2.59021557]
[1761263787430,0.4312,3860.8,3860.7,2.59020384]
[1761263788919,0.4312,3860.8,3860.7,3.14398293]
[1761263789624,0.2216,3860.9,3860.8,3.09701675]